Cogmind - Beta 9.6 @@@ ROGUE MODE // 2020.07.10 @ 19:36:55 Player: Zeldest Result: Destroyed by Y-54 Guardian with Gatling Laser Performance ------------- Evolutions (3) 1500 Regions Visited (4) 800 Robots Destroyed (37) 185 Value Destroyed (1337) 1337 Prototype IDs (1) 20 Alien Tech Used (0) 0 Bonus (0) 0 TOTAL SCORE: 3842 Bonus ------- None Cogmind --------- Core Integrity 0/700 Matter 300/300 Energy 100/100 System Corruption 3% Temperature Cool (18) Movement Core (550) Ox10 Location -7/Factory Parts ------- > --- POWER (1) -------- (None) > --- PROPULSION (4) --- (None) > --- UTILITY (6) ------ High-capacity Storage Unit Improved Signal Interpreter > --- WEAPON (2) ------- (None) > --- INVENTORY (12) --- Light Nuclear Core Light Angular Momentum Engine Large Storage Unit Improved Sensor Array Improved Signal Interpreter Shield Generator Peak State ------------ > --- POWER ------------ Improved Deuterium Engine > --- PROPULSION ------- Improved Aluminum Leg Carbon-fiber Leg Titanium Leg Improved Carbon-fiber Leg > --- UTILITY ---------- High-capacity Storage Unit Advanced Sensor Array Improved Signal Interpreter Melee Analysis Suite Heavy Armor Plating > --- WEAPON ----------- Hammer Katana > --- INVENTORY -------- Light Nuclear Core Light Angular Momentum Engine Aluminum Leg Aluminum Leg Aluminum Leg Large Storage Unit Improved Sensor Array Improved Signal Interpreter Hardened Medium Armor Plating Improved Light Armor Plating Shield Generator Hammer [Rating: 37] Favorites ----------- Power Improved Ion Engine Engine Improved Ion Engine Power Core Light Nuclear Core Propulsion Aluminum Leg Leg Aluminum Leg Wheel Compact Wheel Utility Hardened Medium Armor Plating Device Advanced Sensor Array Storage Large Storage Unit Processor Melee Analysis Suite Protection Hardened Medium Armor Plating Weapon Katana Energy Gun Backup Laser I Ballistic Gun Shotgun Special Weapon Mining Laser Impact Weapon Hammer Slashing Weapon Katana Build | -11 -10 -9 -8 -7 ------- Run | Scr Mat Mat Mat Fac Slots Evolved 6 | . . 2 2 2 Power . | . . . . . Propulsion 2 | . . 1 1 . Utility 4 | . . 1 1 2 Weapon . | . . . . . Parts Attached 52 | 7 2 16 15 12 Power 8 | 2 . 1 3 2 Engine 6 | 2 . 1 1 2 Core 2 | . . . 2 . Reactor . | . . . . . Propulsion 20 | 4 . 5 8 3 Treads . | . . . . . Leg 18 | 2 . 5 8 3 Wheel 2 | 2 . . . . Hover . | . . . . . Flight . | . . . . . Utility 17 | 1 1 6 4 5 Device 1 | . . . . 1 Storage 6 | 1 1 3 1 . Processor 2 | . . . 1 1 Hackware . | . . . . . Protection 8 | . . 3 2 3 Artifact . | . . . . . Weapon 7 | . 1 4 . 2 Energy Gun 2 | . 1 1 . . Energy Cannon . | . . . . . Ballistic Gun 1 | . . 1 . . Ballistic Cannon . | . . . . . Launcher . | . . . . . Special Weapon 1 | . . 1 . . Impact Weapon 2 | . . . . 2 Slashing Weapon 1 | . . 1 . . Piercing Weapon . | . . . . . Special Melee Weapon . | . . . . . Unidentified Prototypes 1 | . . . . 1 Parts Lost 28 | . 2 7 4 15 Power 4 | . . 1 2 1 Propulsion 9 | . . 3 . 6 Utility 7 | . . 1 1 5 Weapon 8 | . 2 2 1 3 Highest Loss Streak 11 | . 1 5 2 11 Average Slot Usage (%) 86 | . 81 88 90 82 Engine 6 | . 14 3 6 6 Leg 25 | . . 20 35 26 Wheel 4 | . 28 10 . . Device 2 | . . . . 6 Storage 9 | . 17 12 9 7 Processor 7 | . . . 8 14 Protection 12 | . . 20 14 7 Energy Gun 4 | . 21 13 . . Special Weapon 2 | . . 4 4 . Impact Weapon 2 | . . . . 6 Slashing Weapon 5 | . . 2 9 4 Naked Turns . | . . . . . Heaviest Build 62 | 9 15 46 58 62 Greatest Support 63 | 32 32 32 55 63 Greatest Overweight (x) 10 | . . 3 1 10 Average Overweight (x) . | . . 1 . . Largest Inventory Capacity 20 | 6 8 20 12 12 Average Capacity 10 | 4 6 10 10 12 Most Carried 12 | 4 4 9 10 12 Average Carried 7 | 2 3 6 8 8 Final Capacity 12 | 6 8 10 12 12 Final Carried 10 | 2 3 9 10 6 Class Distribution -------------------- 59% | Scavenger-Mutant 38% | Mutant Dominant Class ---------------- Mutant | -10/Materials Mutant | -9/Materials Scavenger-Mutant | -8/Materials Scavenger-Mutant | -7/Factory Resources | -11 -10 -9 -8 -7 ----------- Run | Scr Mat Mat Mat Fac Matter Collected 747 | 221 51 127 242 106 Remotely . | . . . . . Salvage Created 1444 | . 65 393 736 250 Parts 71 | . 5 18 32 16 Haulers Intercepted . | . . . . . Recyclers Shooed . | . . . . . Parts Field Recycled . | . . . . . Retrieved Matter . | . . . . . Parts Self-Destructed . | . . . . . Prevented . | . . . . . Kills | -11 -10 -9 -8 -7 ------- Run | Scr Mat Mat Mat Fac Combat Hostiles Destroyed 35 | . 3 13 13 6 Melee 18 | . . . 13 5 Guns 14 | . 3 11 . . Cannons 1 | . . 1 . . Classes Destroyed 7 | . 2 2 1 2 Recycler 1 | . . . 1 . Watcher 1 | . . . . 1 Swarmer 9 | . 2 4 . 3 Grunt 19 | . 1 6 11 1 Duelist 1 | . . 1 . . Sentry 4 | . . 2 2 . Programmer 2 | . . . . 2 Best Kill Streak 5 | . 3 5 5 4 Combat Bots Only 5 | . 3 5 4 4 Max Kills in Single Turn 1 | . 1 1 1 1 Gunslinging . | . . . . . Exploded . | . . . . . Melee 1 | . . . 1 1 Uniques/NPCs Destroyed . | . . . . . Combat | -11 -10 -9 -8 -7 -------- Run | Scr Mat Mat Mat Fac Damage Taken 4848 | . 246 1090 1019 2493 Core 1120 | . 106 126 183 705 Absorbed by Shields . | . . . . . Core Remaining (%) 72 | 100 57 68 66 . Volleys Fired 57 | . 14 43 . . Largest 2 | . 2 2 . . Hottest 130 | . 60 130 . . Shots Fired 79 | . 15 64 . . Gun 76 | . 15 61 . . Cannon . | . . . . . Launcher . | . . . . . Special 3 | . . 3 . . Kinetic 22 | . . 22 . . Thermal 57 | . 15 42 . . Explosive . | . . . . . Electromagnetic . | . . . . . Robot Hit Streak 15 | . 3 15 . . Robot Miss Streak 4 | . 1 4 . . Penetration Max . | . . . . . Secondary Targets . | . . . . . Shots Hit Robots 146 | . 10 52 38 46 Core Hits 60 | . 4 24 16 16 Critical Hits 1 | . . . 1 . Critical Kills 1 | . . . 1 . Critical Parts Destroyed . | . . . . . Melee Attacks 112 | . . 1 53 58 Impact 53 | . . . . 53 Slashing 59 | . . 1 53 5 Piercing . | . . . . . Sneak Attacks 2 | . . . 2 . Combat Hostiles . | . . . . . Follow-up Attacks 6 | . . . . 6 Damage Inflicted 2937 | . 94 646 1369 828 Guns 655 | . 94 561 . . Cannons . | . . . . . Explosions . | . . . . . Melee 2225 | . . 37 1369 819 Ramming 9 | . . . . 9 Kinetic 307 | . . 307 . . Thermal 396 | . 94 302 . . Explosive . | . . . . . Electromagnetic . | . . . . . Impact 723 | . . . . 723 Slashing 1502 | . . 37 1369 96 Piercing . | . . . . . Highest Corruption 3 | . 1 . . 3 Average Corruption 2 | . 1 . . 2 Corruption Purged . | . . . . . Effects 11 | . . . . 11 Message Errors 1 | . . . . 1 Matter Fused 2 | . . . . 2 Heat Flow Errors 2 | . . . . 2 Data Loss (minor) 4 | . . . . 4 Targeting Errors 2 | . . . . 2 Overload Shots . | . . . . . Overflow Damage 169 | . . . 149 20 Projectiles . | . . . . . Explosions . | . . . . . Melee 169 | . . . 149 20 Knockbacks 1 | . . . . 1 Impact 1 | . . . . 1 Kinetic . | . . . . . Secondary . | . . . . . Self-Inflicted Damage . | . . . . . Shots . | . . . . . Rammed 12 | . . . . 12 Targets Rammed 12 | . . . . 12 Kicked . | . . . . . Crushed . | . . . . . Highest Temperature 171 | . 22 171 5 122 Average Temperature 45 | . 8 51 5 52 Received Heat Transfer 1686 | . 78 351 549 708 Siege Activations . | . . . . . Robots Corrupted . | . . . . . Combat Hostiles . | . . . . . Parts Fried 1 | . . . . 1 Impact Corruptions 4 | . . . . 4 Robots Melted 1 | . . 1 . . Combat Hostiles 1 | . . 1 . . Parts Melted 5 | . 1 4 . . Heat Transferred 1543 | . 370 1173 . . Parts Sabotaged . | . . . . . Parts Stolen . | . . . . . Parts Stripped . | . . . . . Power Chain Reactions . | . . . . . Missiles Intercepted . | . . . . . Alert | -11 -10 -9 -8 -7 ------- Run | Scr Mat Mat Mat Fac Peak Influence 250 | . 102 220 250 134 Average Influence 86 | . 61 117 120 45 Maximum Alert Level 1 | . . 1 1 . Low Security (%) 93 | 100 100 82 94 100 Level 1 6 | . . 17 5 . Level 2 . | . . . . . Level 3 . | . . . . . Level 4 . | . . . . . Level 5 . | . . . . . High Security . | . . . . . Max Security . | . . . . . Squads Dispatched 7 | . . 1 2 4 Investigation 1 | . . 1 . . Extermination 1 | . . . . 1 Reinforcement 2 | . . . 2 . Assault . | . . . . . Garrison 3 | . . . . 3 Intercept . | . . . . . Construction Impeded . | . . . . . Haulers Reinforced . | . . . . . Stealth | -11 -10 -9 -8 -7 --------- Run | Scr Mat Mat Mat Fac Distress Signals 7 | . 1 4 2 . Communications Jammed . | . . . . . Distress Signals . | . . . . . Times Spotted 64 | . 6 19 27 12 Peak Tracking Total 6 | . 5 5 6 5 Tactical Retreats 8 | . 1 . 4 3 Traps | -11 -10 -9 -8 -7 ------- Run | Scr Mat Mat Mat Fac Traps Triggered 2 | . 1 1 . . Indirectly . | . . . . . Trap Hack Attempts . | . . . . . Triggered . | . . . . . Disarmed . | . . . . . Reprogrammed . | . . . . . Reused . | . . . . . Traps Extracted . | . . . . . Installed . | . . . . . Triggered . | . . . . . Machines | -11 -10 -9 -8 -7 ---------- Run | Scr Mat Mat Mat Fac Machines Disabled . | . . . . . Max in Single Turn . | . . . . . Machines Sabotaged . | . . . . . Garrisons Compromised . | . . . . . Overloaded Fab Kills . | . . . . . Fab Network Shutdowns . | . . . . . Hacking | -11 -10 -9 -8 -7 --------- Run | Scr Mat Mat Mat Fac Machines Accessed 2 | . 1 . . 1 Terminals . | . . . . . Fabricators . | . . . . . Repair Stations 2 | . 1 . . 1 Recycling Units . | . . . . . Scanalyzers . | . . . . . Garrison Access . | . . . . . Total Hacks 5 | . 2 . . 3 Successful 4 | . 2 . . 2 Failed 1 | . . . . 1 Catastrophic . | . . . . . Database Lockouts . | . . . . . Manual . | . . . . . Terminals . | . . . . . Fabricators . | . . . . . Repair Stations 5 | . 2 . . 3 Recycling Units . | . . . . . Scanalyzers . | . . . . . Garrison Access . | . . . . . Terminal Hacks . | . . . . . Fabricator Hacks . | . . . . . Repair Station Hacks 4 | . 2 . . 2 Scan Component 1 | . . . . 1 Repair 1 | . . . . 1 Refit 2 | . 2 . . . Recycling Unit Hacks . | . . . . . Scanalyzer . | . . . . . Garrison Access Hacks . | . . . . . Unauthorized Hacks . | . . . . . Terminals . | . . . . . Fabricators . | . . . . . Repair Stations . | . . . . . Recycling Units . | . . . . . Scanalyzers . | . . . . . Garrison Access . | . . . . . Data Cores Recovered . | . . . . . Used . | . . . . . Hacking Detections 1 | . . . . 1 Full Trace Events . | . . . . . Feedback Events . | . . . . . Feedback Blocked . | . . . . . Robot Schematics Acquired . | . . . . . Robots Built . | . . . . . Matter . | . . . . . Time . | . . . . . Total Robot Build Rating . | . . . . . Part Schematics Acquired . | . . . . . Parts Built . | . . . . . Matter . | . . . . . Time . | . . . . . Total Part Build Rating . | . . . . . Parts Repaired 1 | . . . . 1 Time 19 | . . . . 19 Parts Recycled . | . . . . . Recycled Matter . | . . . . . Retrieved Matter . | . . . . . Retrieved Components . | . . . . . Parts Scanalyzed . | . . . . . Part Schematics Acquired . | . . . . . Parts Damaged . | . . . . . Bothacking | -11 -10 -9 -8 -7 ------------ Run | Scr Mat Mat Mat Fac Used RIF Installer . | . . . . . Robots Hacked . | . . . . . Non-combat . | . . . . . Combat . | . . . . . Robot Hacks Applied . | . . . . . Relay Couplers Released . | . . . . . Robots Rewired . | . . . . . Allies Hacked . | . . . . . Hacks Repelled . | . . . . . Allies | -11 -10 -9 -8 -7 -------- Run | Scr Mat Mat Mat Fac Total Allies . | . . . . . Largest Group . | . . . . . Highest-Rated Group . | . . . . . Highest-Rated Ally . | . . . . . Total Orders . | . . . . . Ally Attacks . | . . . . . Total Damage . | . . . . . Kills . | . . . . . Allies Corrupted . | . . . . . Allies Melted . | . . . . . Intel | -11 -10 -9 -8 -7 ------- Run | Scr Mat Mat Mat Fac Robot Analysis Total . | . . . . . Derelict Logs Recovered . | . . . . . Drone Launches . | . . . . . Drone Recoveries . | . . . . . Exploration | -11 -10 -9 -8 -7 ------------- Run | Scr Mat Mat Mat Fac Turns Passed 2641 | 88 154 662 835 902 Spaces Moved 1298 | 80 120 389 329 380 Core 26 | 23 . . . 3 Treads . | . . . . . Legs 878 | 17 . 155 329 377 Wheels 394 | 40 120 234 . . Hover . | . . . . . Flight . | . . . . . Fastest Speed 50 | 50 100 100 120 122 Average Speed 134 | 89 100 126 146 152 Slowest Speed 550 | 120 100 210 152 550 Overloaded Moves . | . . . . . Propulsion Burnouts . | . . . . . Robots Hopped . | . . . . . Cave-ins Triggered . | . . . . . Exploration Rate (%) 22 | 3 19 49 28 12 Regions Visited 4 Branch Regions . Pre-discovered Areas . | . . . . . Known Exits Taken . | . . . . . Unknown Exits Taken 4 | 1 1 1 1 . Scrap Searched . | . . . . . Spaces Dug . | . . . . . Terrain Destroyed 1 | . . 1 . . Melee . | . . . . . Projectile 1 | . . 1 . . AOE . | . . . . . Actions | -11 -10 -9 -8 -7 --------- Run | Scr Mat Mat Mat Fac Total 1891 | 95 140 486 604 566 Wait 303 | 3 . 14 184 102 Move 1294 | 79 119 388 328 380 Hop . | . . . . . Pick Up 49 | 5 3 20 14 7 Fast Attach 1 | 1 . . . . Attach 31 | 3 2 11 6 9 Detach . | . . . . . Swap 20 | 3 . 5 9 3 Drop 19 | 1 2 4 10 2 Fire 57 | . 14 43 . . Melee 105 | . . 1 53 51 Ram 12 | . . . . 12 Kick . | . . . . . Crush . | . . . . . Escape Stasis . | . . . . . Rewire . | . . . . . Trap . | . . . . . Miscellaneous . | . . . . . Route ------- -11/Scrapyard -10/Materials (discovered 2 exits: [*Mat] / [*Min]) -9/Materials (discovered 2 exits: [*Mat] / [*Min]) -8/Materials -7/Factory (discovered 1 exit: [*Fac]) History --------- Turn | Location | Event 18 | -11/Scrapyard | Discovered new exit (range 15) 89 | -11/Scrapyard | Entered Materials 196 | -10/Materials | Discovered new exit (range 13) 199 | -10/Materials | Discovered new exit (range 16) 243 | -10/Materials | Entered another Materials area 243 | -9/Materials | Evolved 2 slots: Propulsion x1, Utility x1 582 | -9/Materials | Discovered new exit (range 16) 588 | -9/Materials | Build established: Mutant 743 | -9/Materials | Lost 5 parts (2n1u2w) 841 | -9/Materials | Discovered new exit (range 13) 905 | -9/Materials | Entered another Materials area 905 | -8/Materials | Evolved 2 slots: Propulsion x1, Utility x1 1046 | -8/Materials | Build established: Scavenger-Mutant 1721 | -8/Materials | Discovered new exit (range 11) 1740 | -8/Materials | Entered Factory 1740 | -7/Factory | Evolved 2 slots: Utility x2 1797 | -7/Factory | Repaired Hvy. Armor Plating 2379 | -7/Factory | Garrison activated, responded to threat 2457 | -7/Factory | Lost 4 parts (2n1u1w) 2493 | -7/Factory | Discovered new exit (range 14) 2576 | -7/Factory | Core integrity fell below 50% 2604 | -7/Factory | Core integrity fell below 20% 2617 | -7/Factory | Build established: Mutant 2620 | -7/Factory | Lost 11 parts (1p4n4u2w) 2642 | -7/Factory | Destroyed by Y-54 Guardian with Gatling Laser Last Messages --------------- 02529_ Hammer destroyed. 02532_ Imp. Carbon-fiber Leg destroyed. 02540_ Imp. Light Armor Plating destroyed. 02542_ System corrupted: Hammer targeting data glitched. 02545_ Titanium Leg destroyed. 02550_ Aluminum Leg destroyed. 02551_ System corrupted: Hammer targeting data glitched. 02556_ Hammer destroyed. 02558_ Slammed into Y-54 Guardian. 02559_ Melee Analysis Suite destroyed. 02566_ Slammed into Y-54 Guardian. 02572_ Hvy. Deuterium Engine destroyed. 02573_ Slammed into Y-54 Guardian. 02589_ Adv. Sensor Array destroyed. 02590_ Slammed into Y-54 Guardian. 02592_ 3B0 02601_ Imp. Signal Interpreter permanently disabled. 02601_ Destabilizing: Short circuit. 02606_ Slammed into Y-54 Guardian. Map ----- +----------------------------------------------------+ | ?????????????????????????????????????????????????? | | ?????????????????????????????????????????????????? | | ?????????????????????????????????????????????????? | | ?????????????????? ???????????????????????????? | | ????????????????# ???????????????????????????? | | ???????????????? ???????????????????????????? | | ????????????????? < ???????????????????????????? | | ????????????????? ???????????????????????????? | | ????????????????? ???????????????????????????? | | ?????????????????? ???????????????????????????? | | ??????????????????# #??????????????????????????? | | ??????????????????# #??????????????????????????? | | ??????????????????# #??????????????????????????? | | ??????????????????# #??????????????????????????? | | ??????????????????# ######?????????????????????? | | ??????????????????# %% ##????????????????????? | | ??????????????????# %% +????????????????????? | | ??????????????????# % ##????????????????????? | | ??????????????#######+## % #?##+###??????????????? | | ??????????????# # %%## #??????????????? | | ??????????????# # %% T #??????????????? | | ??????????????# # % "" #??????????????? | | ?????######???# !!! # % #??????????????? | | ?????# #???# !!! ##Y### ] #??????????????? | | ?????# #???# !! ## #??## ###??????????????? | | ##### #####% ##@#???? #????????????????? | | %+ % ## ????#????????????????? | | #### ## ???????????????????? | | ############## #??????????????????? | | / # #??????????????????? | | ######### ## # !==r#??????????????????? | | ??#= ?# ## # === +??????????????????? | | ??# ?# ## # === #??????????????????? | | ??# # ## # #??????????????????? | | ??# """ # ## ! # #??????????????????? | | ??# Y" + + #] #??????????????????? | | ??# """ # ## # #??????????????????? | | ??# # ## # #??????????????????? | | ??#####?# #? ##+####??????????????????? | | ????????# #? ! !?????????????????????????? | | ????????# #? ?????????????????????????? | | ????????# #?####+#+####??????????????????????????? | | ???######+######?????????????????????????????????? | | ???# #?????????????????????????????????? | | ???# "" % #?????????????????????????????????? | | ???# "G ] +?????????????????????????????????? | | ???# "" ] #?? """ #????????????????????????? | | ???# = ! #? #????????????????????????? | | ???########+#### #????????????????????????? | | ????????# #????????????????????????? | +----------------------------------------------------+ Best States ------------- Heat Dissipation 34 Energy Generation 18 Energy Capacity 310 Matter Stores 300 Matter Capacity 300 Sight Range 16 Robot Scan Range 16 Terrain Scan Density 10 Armor Coverage 600 Evasion (%) 50 Melee Accuracy 5 Item Schematics ----------------- None Robot Schematics ------------------ None Fabricated ------------ Nothing Alien Tech Used ----------------- None Achievements -------------- It's Just You Troublemaker Challenges ------------ None Game ------ Seed SlugMagneticChip Manual? 0 Play Time 00:34:09 Cumulative 10.0 hours Start 2020.07.10 @ 19:06:03 End 2020.07.10 @ 19:36:55 Sessions 1 Manual Loads 0 Difficulty Rogue Special Mode None Game No. 23 Rogue 23 Adventurer 0 Explorer 0 Win Type - Total 0 Types 0/0/0/0/0/0/0 Lore% 6 Gallery% 17 Achievement% 12 Wizard Run 0 Options --------- ASCII 0 Keyboard 0 Movement Numpad Keybinds 0 Fullscreen 1 Font 18/SmallcapsGlow Map View 76x50 Tactical HUD 1 Map Filters NONE Filters NONE Steam 1 RUN: 2a7453a2-017e-497f-886d-5570acf5580f